lending/lending_fUSD_20240507
["ID","MTS","AMOUNT","RATE_DAILY","PERIOD"]
[326588981,1715119861575,-500.0,0.00019726,2]
[326588982,1715119861585,-500.0,0.00019726,2]
[326588983,1715119861595,-500.0,0.00019726,2]
[326588984,1715119861604,-500.0,0.00019726,2]
[326588985,1715119861613,-500.0,0.00019726,2]
[326588986,1715119861623,-500.0,0.00019726,2]
[326588987,1715119861633,-1949.26,0.00019726,2]
[326588988,1715119861643,-437.21,0.00019726,2]
[326588989,1715119861653,-500.0,0.00019726,2]
[326588990,1715119861662,-500.0,0.00019726,2]
[326588991,1715119861672,-345.17,0.00019726,2]
[326588992,1715119861684,-500.0,0.00019726,2]
[326588993,1715119861694,-500.0,0.00019726,2]
[326588994,1715119861704,-154.73,0.0001978,2]
[326588995,1715119861713,-155.82389901,0.000199,2]
[326588996,1715119861723,-884546.48888543,0.000199,5]
[326588997,1715119861733,-600.0,0.000199,7]
[326588998,1715119861742,-800.0,0.0002,3]
[326588999,1715119861751,-500.0,0.0002,2]
[326589000,1715119861760,-475.56,0.0002,2]
[326589001,1715119861770,-558.18,0.0002,2]
[326589002,1715119861779,-500.0,0.0002,2]
[326589003,1715119861789,-500.0,0.0002,2]
[326589004,1715119861799,-500.0,0.0002,2]
[326589005,1715119861808,-243.08,0.0002,2]
[326589006,1715119861818,-500.0,0.0002,2]
[326589007,1715119861828,-500.0,0.0002,2]
[326589008,1715119861837,-500.0,0.0002,2]
[326589009,1715119861847,-261.6,0.0002,2]
[326589010,1715119861856,-500.0,0.0002,2]
[326589011,1715119861866,-500.0,0.0002,2]
[326589012,1715119861875,-500.0,0.0002,2]
[326589013,1715119861885,-500.0,0.0002,2]
[326589014,1715119861895,-500.0,0.0002,2]
[326589015,1715119861905,-500.0,0.0002,2]
[326589016,1715119861914,-500.0,0.0002,2]
[326589017,1715119861924,-500.0,0.0002,2]
[326589018,1715119861934,-321.98,0.0002,2]
[326589019,1715119861943,-500.0,0.0002,2]
[326589020,1715119861957,-500.0,0.0002,2]
[326589021,1715119861966,-500.0,0.0002,2]
[326589022,1715119861976,-500.0,0.0002,2]
[326589023,1715119861985,-500.0,0.0002,2]
[326589024,1715119861996,-381.88,0.0002,2]
[326589025,1715119862006,-500.0,0.0002,2]
[326589026,1715119862016,-640.96,0.0002,2]
[326589027,1715119862025,-500.0,0.0002,2]
[326589028,1715119862041,-500.0,0.0002,2]
[326589029,1715119862052,-500.0,0.0002,2]
[326589030,1715119862062,-644.06,0.0002,2]
[326589031,1715119862072,-500.0,0.0002,2]
[326589032,1715119862082,-298.86,0.0002,2]
[326589033,1715119862092,-500.0,0.0002,2]
[326589034,1715119862101,-500.0,0.0002,2]
[326589035,1715119862111,-500.0,0.0002,2]
[326589036,1715119862121,-500.0,0.0002,2]
[326589037,1715119862131,-387.46,0.0002,2]
[326589038,1715119862141,-500.0,0.0002,2]
[326589039,1715119862151,-500.0,0.0002,2]
[326589040,1715119862161,-500.0,0.0002,2]
[326589041,1715119862171,-340.46,0.0002,2]
[326589042,1715119862181,-500.0,0.0002,2]
[326589043,1715119862191,-500.0,0.0002,2]
[326589044,1715119862201,-500.0,0.0002,2]
[326589045,1715119862211,-500.0,0.0002,2]
[326589046,1715119862221,-264.88,0.0002,2]
[326589047,1715119862231,-339.5,0.0002,2]
[326589048,1715119862241,-500.0,0.0002,2]
[326589049,1715119862252,-500.0,0.0002,2]
[326589050,1715119862263,-211.6,0.0002,2]
[326589051,1715119862273,-500.0,0.0002,2]
[326589052,1715119862284,-500.0,0.0002,2]
[326589053,1715119862294,-500.0,0.0002,2]
[326589054,1715119862304,-589.4,0.0002,2]
[326589055,1715119862314,-500.0,0.0002,2]
[326589056,1715119862324,-500.0,0.0002,2]
[326589057,1715119862335,-500.0,0.0002,2]
[326589058,1715119862345,-352.98,0.0002,2]
[326589059,1715119862355,-500.0,0.0002,2]
[326589060,1715119862365,-500.0,0.0002,2]
[326589061,1715119862375,-500.0,0.0002,2]
[326589062,1715119862385,-429.39,0.0002,2]
[326589063,1715119862395,-500.0,0.0002,2]
[326589064,1715119862406,-500.0,0.0002,2]
[326589065,1715119862465,-500.0,0.0002,2]
[326589066,1715119862476,-500.0,0.0002,2]
[326589067,1715119862486,-500.0,0.0002,2]
[326589068,1715119862495,-500.0,0.0002,2]
[326589069,1715119862505,-616.5,0.0002,2]
[326589070,1715119862515,-500.0,0.0002,2]
[326589071,1715119862524,-500.0,0.0002,2]
[326589072,1715119862534,-500.0,0.0002,2]
[326589073,1715119862544,-500.0,0.0002,2]
[326589074,1715119862553,-150.0,0.0002,2]
[326589075,1715119862563,-500.0,0.0002,2]
[326589076,1715119862572,-504.97372132,0.0002,2]
[326589077,1715119862582,-500.0,0.0002,2]
[326589078,1715119862591,-184.28,0.0002,2]
[326589079,1715119862600,-500.0,0.0002,2]
[326589080,1715119862610,-500.0,0.0002,2]
[326589081,1715119862619,-500.0,0.0002,2]
[326589082,1715119862628,-453.23,0.0002,2]
[326589083,1715119862638,-500.0,0.0002,2]
[326589084,1715119862648,-500.0,0.0002,2]
[326589085,1715119862657,-942.72,0.0002,2]
[326589086,1715119862667,-500.0,0.0002,2]
[326589087,1715119862678,-500.0,0.0002,2]
[326589088,1715119862687,-500.0,0.0002,2]
[326589089,1715119862697,-500.0,0.0002,2]
[326589090,1715119862707,-500.0,0.0002,2]
[326589091,1715119862717,-500.0,0.0002,2]
[326589092,1715119862727,-500.0,0.0002,2]
[326589093,1715119862736,-500.0,0.0002,2]
[326589094,1715119862745,-430.92,0.0002,2]
[326589095,1715119862755,-515.24,0.0002,2]
[326589096,1715119862765,-500.0,0.0002,2]
[326589097,1715119862775,-500.0,0.0002,2]
[326589098,1715119862784,-500.0,0.0002,2]
[326589099,1715119862793,-500.0,0.0002,2]
[326589100,1715119862803,-460.58,0.0002,2]
[326589101,1715119862813,-500.0,0.0002,2]
[326589102,1715119862823,-1730.51,0.0002,2]
[326589103,1715119862833,-500.0,0.0002,2]
[326589104,1715119862842,-548.67,0.0002,2]
[326589105,1715119862852,-500.0,0.0002,2]
[326589106,1715119862861,-500.0,0.0002,2]
[326589107,1715119862871,-500.0,0.0002,2]
[326589108,1715119862880,-500.0,0.0002,2]
[326589109,1715119862889,-500.0,0.0002,2]
[326589110,1715119862899,-500.0,0.0002,2]
[326589111,1715119862908,-500.0,0.0002,2]
[326589112,1715119862918,-500.0,0.0002,2]
[326589113,1715119862927,-229.96,0.0002,2]
[326589114,1715119862937,-500.0,0.0002,2]
[326589115,1715119862946,-500.0,0.0002,2]
[326589116,1715119862955,-500.0,0.0002,2]
[326589117,1715119862967,-500.0,0.0002,2]
[326589118,1715119862978,-500.0,0.0002,2]
[326589119,1715119862988,-500.0,0.0002,2]
[326589120,1715119862997,-500.0,0.0002,2]
[326589121,1715119863007,-500.0,0.0002,2]
[326589122,1715119863018,-383.4,0.0002,2]
[326589123,1715119863028,-500.0,0.0002,2]
[326589124,1715119863037,-500.0,0.0002,2]
[326589125,1715119863048,-500.0,0.0002,2]
[326589126,1715119863058,-500.0,0.0002,2]
[326589127,1715119863067,-500.0,0.0002,2]
[326589128,1715119863076,-464.74,0.0002,2]
[326589129,1715119863086,-500.0,0.0002,2]
[326589130,1715119863095,-609.54,0.0002,2]
[326589131,1715119863105,-500.0,0.0002,2]
[326589132,1715119863114,-500.0,0.0002,2]
[326589133,1715119863123,-500.0,0.0002,2]
[326589134,1715119863132,-861.16,0.0002,2]
[326589135,1715119863142,-697.67,0.0002,2]
[326589136,1715119863151,-516.54,0.0002,2]
[326589137,1715119863161,-500.0,0.0002,2]
[326589138,1715119863172,-1094.36,0.0002,2]
[326589139,1715119863181,-500.0,0.0002,2]
[326589140,1715119863190,-500.0,0.0002,2]
[326589141,1715119863200,-271.86,0.0002,2]
[326589142,1715119863209,-500.0,0.0002,2]
[326589143,1715119863218,-971.99,0.0002,2]
[326589144,1715119863228,-500.0,0.0002,2]
[326589145,1715119863237,-350.78,0.0002,2]
[326589146,1715119863247,-3689.41,0.0002,2]
[326589147,1715119863256,-500.0,0.0002,2]
[326589148,1715119863266,-500.0,0.0002,2]
[326589149,1715119863275,-500.0,0.0002,2]
[326589150,1715119863284,-569.47,0.0002,2]
[326589151,1715119863293,-622.05,0.0002,2]
[326589152,1715119863303,-500.0,0.0002,2]
[326589153,1715119863312,-500.0,0.0002,2]
[326589154,1715119863322,-333.42,0.0002,2]
[326589155,1715119863331,-500.0,0.0002,2]
[326589156,1715119863341,-500.0,0.0002,2]
[326589157,1715119863350,-500.0,0.0002,2]
[326589158,1715119863360,-500.0,0.0002,2]
[326589159,1715119863369,-890.12,0.0002,2]
[326589160,1715119863379,-500.0,0.0002,2]
[326589161,1715119863389,-500.0,0.0002,2]
[326589162,1715119863399,-500.0,0.0002,2]
[326589163,1715119863408,-500.0,0.0002,2]
[326589164,1715119863418,-500.0,0.0002,2]
[326589165,1715119863427,-850.11,0.0002,2]
[326589166,1715119863437,-500.0,0.0002,2]
[326589167,1715119863447,-932.93,0.0002,2]
[326589168,1715119863457,-239.54,0.0002,2]
[326589169,1715119863467,-500.0,0.0002,2]
[326589170,1715119863477,-357.82794038,0.0002,2]
[326589171,1715119863487,-553.76,0.0002,2]
[326589172,1715119863496,-500.0,0.0002,2]
[326589173,1715119863506,-500.0,0.0002,2]
[326589174,1715119863516,-828.94,0.0002,2]
[326589175,1715119863526,-229.04,0.0002,2]
[326589176,1715119863535,-500.0,0.0002,2]
[326589177,1715119863545,-500.0,0.0002,2]
[326589178,1715119863555,-500.0,0.0002,2]
[326589179,1715119863565,-500.0,0.0002,2]
[326589180,1715119863575,-500.0,0.0002,2]
[326589181,1715119863585,-505.16,0.0002,2]
[326589182,1715119863595,-500.0,0.0002,2]
[326589183,1715119863605,-500.0,0.0002,2]
[326589184,1715119863614,-500.0,0.0002,2]
[326589185,1715119863624,-500.0,0.0002,2]
[326589186,1715119863633,-500.0,0.0002,2]
[326589187,1715119863642,-538.54,0.0002,2]
[326589188,1715119863652,-224.68,0.0002,2]
[326589189,1715119863662,-831.91,0.0002,2]
[326589190,1715119863672,-2890.11,0.0002,2]
[326589191,1715119863684,-500.0,0.0002,2]
[326589192,1715119863694,-303.0,0.0002,2]
[326589193,1715119863704,-500.0,0.0002,2]
[326589194,1715119863715,-500.0,0.0002,2]
[326589195,1715119863725,-789.32,0.0002,2]
[326589196,1715119863735,-500.0,0.0002,2]
[326589197,1715119863744,-500.0,0.0002,2]
[326589198,1715119863755,-500.0,0.0002,2]
[326589199,1715119863765,-500.0,0.0002,2]
[326589200,1715119863775,-500.0,0.0002,2]
[326589201,1715119863785,-1838.64,0.0002,2]
[326589202,1715119863795,-500.0,0.0002,2]
[326589203,1715119863805,-500.0,0.0002,2]
[326589204,1715119863814,-258.94,0.0002,2]
[326589205,1715119863824,-500.0,0.0002,2]
[326589206,1715119863834,-500.0,0.0002,2]
[326589207,1715119863844,-500.0,0.0002,2]
[326589208,1715119863853,-500.0,0.0002,2]
[326589209,1715119863863,-500.0,0.0002,2]
[326589210,1715119863873,-500.0,0.0002,2]
[326589211,1715119863883,-500.0,0.0002,2]
[326589212,1715119863894,-500.0,0.0002,2]
[326589213,1715119863904,-500.0,0.0002,2]
[326589214,1715119863914,-500.0,0.0002,2]
[326589215,1715119863925,-1016.56,0.0002,2]
[326589216,1715119863935,-500.0,0.0002,2]
[326589217,1715119863945,-500.0,0.0002,2]
[326589218,1715119863955,-500.0,0.0002,2]
[326589219,1715119863967,-500.0,0.0002,2]
[326589220,1715119863979,-565.75,0.0002,2]
[326589221,1715119863988,-500.0,0.0002,2]
[326589222,1715119863999,-875.3,0.0002,2]
[326589223,1715119864014,-500.0,0.0002,2]
[326589224,1715119864024,-648.96,0.0002,2]
[326589225,1715119864035,-500.0,0.0002,2]
[326589226,1715119864046,-500.0,0.0002,2]
[326589227,1715119864057,-500.0,0.0002,2]
[326589228,1715119864067,-1782.61,0.0002,2]
[326589229,1715119864078,-500.0,0.0002,2]
[326589230,1715119864088,-1028.09,0.0002,2]
[326589231,1715119864097,-1195.08,0.0002,2]
[326589232,1715119864107,-424.89,0.0002,2]
[326589233,1715119864117,-500.0,0.0002,2]
[326589234,1715119864127,-1256.37,0.0002,2]
[326589235,1715119864136,-500.0,0.0002,2]
[326589236,1715119864147,-3203.8,0.0002,2]
[326589237,1715119864157,-500.0,0.0002,2]
[326589238,1715119864167,-5342.88,0.0002,2]
[326589239,1715119864177,-526.33,0.0002,2]
[326589240,1715119864187,-500.0,0.0002,2]
[326589241,1715119864197,-610.75,0.0002,2]
[326589242,1715119864207,-500.0,0.0002,2]
[326589243,1715119864218,-815.42,0.0002,2]
[326589244,1715119864228,-500.0,0.0002,2]
[326589245,1715119864238,-500.0,0.0002,2]
[326589246,1715119864249,-500.0,0.0002,2]
[326589247,1715119864259,-500.0,0.0002,2]
[326589248,1715119864270,-500.0,0.0002,2]
[326589249,1715119864281,-491.44,0.0002,2]
[326589250,1715119864292,-500.0,0.0002,2]
[326589251,1715119864302,-500.0,0.0002,2]
[326589252,1715119864312,-1949.26,0.0002,2]
[326589253,1715119864322,-500.0,0.0002,2]
[326589254,1715119864332,-552.2,0.0002,2]
[326589255,1715119864342,-511.56,0.0002,2]
[326589256,1715119864352,-208.16,0.0002,2]
[326589257,1715119864362,-500.0,0.00020273,2]
[326589258,1715119864372,-500.0,0.00020273,2]
[326589259,1715119864382,-500.0,0.00020273,2]
[326589260,1715119864392,-450.14,0.00020273,2]
[326589261,1715119864402,-500.0,0.00020273,2]
[326589262,1715119864412,-351.27846705,0.00020273,2]
[326589263,1715119864423,-500.0,0.00020273,2]
[326589264,1715119864433,-500.34,0.00020273,2]
[326589265,1715119864443,-500.0,0.00020273,2]
[326589266,1715119864453,-162.64,0.00020273,2]
[326589267,1715119864463,-500.0,0.00020273,2]
[326589268,1715119864473,-308.22,0.00020273,2]
[326589269,1715119864484,-500.0,0.00020273,2]
[326589270,1715119864493,-500.0,0.00020273,2]
[326589271,1715119864503,-500.0,0.00020273,2]
[326589272,1715119864513,-500.0,0.00020273,2]
[326589273,1715119864524,-500.0,0.00020273,2]
[326589274,1715119864533,-500.0,0.00020273,2]
[326589275,1715119864544,-500.0,0.00020273,2]
[326589276,1715119864554,-500.0,0.00020273,2]
[326589277,1715119864565,-500.0,0.00020273,2]
[326589278,1715119864575,-500.0,0.00020273,2]
[326589279,1715119864585,-500.0,0.00020273,2]
[326589280,1715119864596,-202.76,0.00020273,2]
[326589281,1715119864606,-500.0,0.00020273,2]
[326589282,1715119864617,-500.0,0.00020273,2]
[326589283,1715119864627,-554.76,0.00020273,2]
[326589284,1715119864638,-500.0,0.00020273,2]
[326589285,1715119864649,-500.0,0.00020273,2]
[326589286,1715119864659,-500.0,0.00020273,2]
[326589287,1715119864670,-500.0,0.00020273,2]
[326589288,1715119864680,-217.06,0.00020273,2]
[326589289,1715119864690,-500.0,0.00020273,2]
[326589290,1715119864700,-500.0,0.00020273,2]
[326589291,1715119864711,-218.28,0.00020273,2]
[326589292,1715119864722,-327.42,0.00020273,2]
[326589293,1715119864732,-500.0,0.00020273,2]
[326589294,1715119864742,-500.0,0.00020273,2]
[326589295,1715119864752,-500.0,0.00020273,2]
[326589296,1715119864762,-627.14,0.00020273,2]
[326589297,1715119864771,-621.6,0.00020273,2]
[326589298,1715119864782,-500.0,0.00020273,2]
[326589299,1715119864791,-500.0,0.00020273,2]
[326589300,1715119864801,-500.0,0.00020273,2]
[326589301,1715119864811,-536.36,0.00020273,2]
[326589302,1715119864821,-500.0,0.00020273,2]
[326589303,1715119864830,-500.0,0.00020273,2]
[326589304,1715119864840,-500.0,0.00020273,2]
[326589305,1715119864850,-500.0,0.00020273,2]
[326589306,1715119864860,-500.0,0.00020273,2]
[326589307,1715119864869,-500.0,0.00020273,2]
[326589308,1715119864879,-500.0,0.00020273,2]
[326589309,1715119864889,-290.0,0.00020273,2]
[326589310,1715119864899,-500.0,0.00020273,2]
[326589311,1715119864908,-500.0,0.00020273,2]
[326589312,1715119864919,-500.0,0.00020273,2]
[326589313,1715119864929,-500.0,0.00020273,2]
[326589314,1715119864939,-150.0,0.00020273,2]
[326589315,1715119864949,-500.0,0.00020273,2]
[326589316,1715119864961,-500.0,0.00020273,2]
[326589317,1715119864977,-500.0,0.00020273,2]
[326589318,1715119864987,-500.0,0.00020273,2]
[326589319,1715119864997,-225.85,0.00020273,2]
[326589320,1715119865008,-463.46139142,0.00020273,2]
[326589321,1715119865018,-500.0,0.00020273,2]
[326589322,1715119865028,-942.72,0.00020273,2]
[326589323,1715119865038,-500.0,0.00020273,2]
[326589324,1715119865051,-500.0,0.00020273,2]
[326589325,1715119865062,-500.0,0.00020273,2]
[326589326,1715119865072,-500.0,0.00020273,2]
[326589327,1715119865082,-500.0,0.00020273,2]
[326589328,1715119865093,-500.0,0.00020273,2]
[326589329,1715119865103,-500.0,0.00020273,2]
[326589330,1715119865113,-500.0,0.00020273,2]
[326589331,1715119865122,-515.24,0.00020273,2]
[326589332,1715119865132,-500.0,0.00020273,2]
[326589333,1715119865143,-518.25,0.00020273,2]
[326589334,1715119865152,-500.0,0.00020273,2]
[326589335,1715119865162,-500.0,0.00020273,2]
[326589336,1715119865172,-500.0,0.00020273,2]
[326589337,1715119865182,-1730.51,0.00020273,2]
[326589338,1715119865192,-500.0,0.00020273,2]
[326589339,1715119865202,-500.0,0.00020273,2]
[326589340,1715119865212,-459.7680931,0.00020273,2]
[326589341,1715119865222,-500.0,0.00020273,2]
[326589342,1715119865232,-500.0,0.00020273,2]
[326589343,1715119865242,-500.0,0.00020273,2]
[326589344,1715119865252,-500.0,0.00020273,2]
[326589345,1715119865263,-500.0,0.00020273,2]
[326589346,1715119865272,-500.0,0.00020273,2]
[326589347,1715119865282,-500.0,0.00020273,2]
[326589348,1715119865293,-573.19,0.00020273,2]
[326589349,1715119865303,-500.0,0.00020273,2]
[326589350,1715119865313,-207.31,0.00020273,2]
[326589351,1715119865324,-644.14,0.00020273,2]
[326589352,1715119865334,-500.0,0.00020273,2]
[326589353,1715119865344,-500.0,0.00020273,2]
[326589354,1715119865354,-500.0,0.00020273,2]
[326589355,1715119865364,-500.0,0.00020273,2]
[326589356,1715119865374,-500.0,0.00020273,2]
[326589357,1715119865384,-500.0,0.00020273,2]
[326589358,1715119865394,-500.0,0.00020273,2]
[326589359,1715119865404,-500.0,0.00020273,2]
[326589360,1715119865414,-500.0,0.00020273,2]
[326589361,1715119865425,-500.0,0.00020273,2]
[326589362,1715119865435,-500.0,0.00020273,2]
[326589363,1715119865445,-500.0,0.00020273,2]
[326589364,1715119865456,-861.16,0.00020273,2]
[326589365,1715119865466,-697.67,0.00020273,2]
[326589366,1715119865477,-516.54,0.00020273,2]
[326589367,1715119865487,-500.0,0.00020273,2]
[326589368,1715119865497,-1094.36,0.00020273,2]
[326589369,1715119865507,-500.0,0.00020273,2]
[326589370,1715119865517,-500.0,0.00020273,2]
[326589371,1715119865528,-581.42154451,0.00020273,2]
[326589372,1715119865537,-971.99,0.00020273,2]
[326589373,1715119865548,-500.0,0.00020273,2]
[326589374,1715119865559,-474.88881193,0.00020273,2]
[326589375,1715119865569,-500.0,0.00020273,2]
[326589376,1715119865579,-3689.41,0.00020273,2]
[326589377,1715119865589,-500.0,0.00020273,2]
[326589378,1715119865599,-622.05,0.00020273,2]
[326589379,1715119865609,-569.47,0.00020273,2]
[326589380,1715119865619,-500.0,0.00020273,2]
[326589381,1715119865630,-500.0,0.00020273,2]
[326589382,1715119865640,-385.76,0.00020273,2]
[326589383,1715119865649,-500.0,0.00020273,2]
[326589384,1715119865660,-349.04,0.00020273,2]
[326589385,1715119865670,-500.0,0.00020273,2]
[326589386,1715119865684,-890.12,0.00020273,2]
[326589387,1715119865694,-564.11775044,0.00020273,2]
[326589388,1715119865704,-500.0,0.00020273,2]
[326589389,1715119865714,-508.28,0.00020273,2]
[326589390,1715119865724,-391.77918222,0.00020273,2]
[326589391,1715119865734,-500.0,0.00020273,2]
[326589392,1715119865744,-850.11,0.00020273,2]
[326589393,1715119865755,-157.87,0.00020273,2]
[326589394,1715119865765,-932.93,0.00020273,2]
[326589395,1715119865775,-500.0,0.00020273,2]
[326589396,1715119865785,-500.0,0.00020273,2]
[326589397,1715119865796,-287.79,0.00020273,2]
[326589398,1715119865805,-828.94,0.00020273,2]
[326589399,1715119865816,-500.0,0.00020273,2]
[326589400,1715119865826,-500.0,0.00020273,2]
[326589401,1715119865837,-500.0,0.00020273,2]
[326589402,1715119865847,-500.0,0.00020273,2]
[326589403,1715119865858,-500.0,0.00020273,2]
[326589404,1715119865868,-505.16,0.00020273,2]
[326589405,1715119865879,-500.0,0.00020273,2]
[326589406,1715119865889,-500.0,0.00020273,2]
[326589407,1715119865899,-422.19,0.00020273,2]
[326589408,1715119865910,-500.0,0.00020273,2]
[326589409,1715119865922,-500.0,0.00020273,2]
[326589410,1715119865933,-831.91,0.00020273,2]
[326589411,1715119865944,-2890.11,0.00020273,2]
[326589412,1715119865955,-500.0,0.00020273,2]
[326589413,1715119865966,-498.39,0.00020273,2]
[326589414,1715119866123,-500.0,0.00020273,2]
[326589415,1715119866133,-500.0,0.00020273,2]
[326589416,1715119866144,-500.0,0.00020273,2]
[326589417,1715119866153,-789.32,0.00020273,2]
[326589418,1715119866164,-160.3677707,0.00020273,2]
[326589419,1715119866431,-339.6322293,0.00020273,2]
[326589420,1715119866441,-500.0,0.00020273,2]
[326589421,1715119866450,-1838.64,0.00020273,2]
[326589422,1715119866460,-500.0,0.00020273,2]
[326589423,1715119866470,-500.0,0.00020273,2]
[326589424,1715119866480,-500.0,0.00020273,2]
[326589425,1715119866489,-500.0,0.00020273,2]
[326589426,1715119866498,-331.03,0.00020273,2]
[326589427,1715119866508,-500.0,0.00020273,2]
[326589428,1715119866517,-500.0,0.00020273,2]
[326589429,1715119866527,-500.0,0.00020273,2]
[326589430,1715119866536,-500.0,0.00020273,2]
[326589431,1715119866545,-500.0,0.00020273,2]
[326589432,1715119866554,-500.0,0.00020273,2]
[326589433,1715119866564,-500.0,0.00020273,2]
[326589434,1715119866574,-500.0,0.00020273,2]
[326589435,1715119866584,-1016.56,0.00020273,2]
[326589436,1715119866593,-500.0,0.00020273,2]
[326589437,1715119866603,-505.89,0.00020273,2]
[326589438,1715119866613,-500.0,0.00020273,2]
[326589439,1715119866622,-500.0,0.00020273,2]
[326589440,1715119866632,-500.0,0.00020273,2]
[326589441,1715119866641,-875.3,0.00020273,2]
[326589442,1715119866650,-178.12,0.00020273,2]
[326589443,1715119866659,-648.96,0.00020273,2]
[326589444,1715119866668,-500.0,0.00020273,2]
[326589445,1715119866679,-514.9,0.00020273,2]
[326589446,1715119866689,-500.0,0.00020273,2]
[326589447,1715119866699,-1782.61,0.00020273,2]
[326589448,1715119866708,-500.0,0.00020273,2]
[326589449,1715119866718,-1028.09,0.00020273,2]
[326589450,1715119866727,-1195.08,0.00020273,2]
[326589451,1715119866736,-500.0,0.00020273,2]
[326589452,1715119866746,-1256.37,0.00020273,2]
[326589453,1715119866755,-500.0,0.00020273,2]
[326589454,1715119866764,-175.58,0.00020273,2]
[326589455,1715119866774,-3203.8,0.00020273,2]
[326589456,1715119866783,-5342.88,0.00020273,2]
[326589457,1715119866792,-500.0,0.00020273,2]
[326589458,1715119866801,-500.0,0.00020273,2]
[326589459,1715119866811,-815.42,0.00020273,2]
[326589460,1715119866820,-500.0,0.00020273,2]
[326589461,1715119866830,-500.0,0.00020273,2]
[326589462,1715119866840,-500.0,0.00020273,2]
[326589463,1715119866849,-500.0,0.00020273,2]
[326589464,1715119866859,-500.0,0.00020273,2]
[326589465,1715119866868,-500.0,0.00020273,2]
[326589466,1715119866878,-272.73,0.00020273,2]
[326589467,1715119866887,-1949.26,0.00020273,2]
[326589468,1715119866897,-500.0,0.00020273,2]
[326589469,1715119866906,-153.72003342,0.00020331,2]
[326589470,1715119866916,-152.0,0.00020344,2]
[326589471,1715119866927,-150.0,0.000205,2]
[326589472,1715119866935,-2180.17335597,0.00020543,2]
[326589473,1715119866945,-1678.54469435,0.00020544,2]
[326589474,1715119866954,-1635.11088042,0.00020544,2]
[326589475,1715119866963,-364.092458,0.00020547,2]
[326589476,1715119866973,-623.31,0.00020547,2]
[326589477,1715119866984,-500.0,0.00020547,2]
[326589478,1715119866993,-644.94,0.00020547,2]
[326589479,1715119867002,-498.21,0.00020547,2]
[326589480,1715119867011,-500.0,0.00020547,2]